bitfinex-derivatives/quotes_BTCF0:USTF0_20250309
["timestamp","ask_amount","ask_price","bid_price","bid_amount"]
[1741518016325,0.1613,84860.0,84859.0,1.7724637]
[1741518016530,0.25805395,84863.0,84862.0,0.1178595]
[1741518016719,0.25805395,84863.0,84862.0,0.12949103]
[1741518016921,0.25805395,84863.0,84862.0,0.36199103]
[1741518017230,0.37591205,84863.0,84862.0,1.86199103]
[1741518017622,0.2026981,84863.0,84862.0,1.86199103]
[1741518017823,0.08484,84863.0,84862.0,1.86199103]
[1741518018031,0.1178556,84865.0,84864.0,0.1178568]
[1741518018229,0.1178536,84867.0,84866.0,0.117854]
[1741518018527,0.1178536,84867.0,84866.0,0.478654]
[1741518018731,0.12202747,84867.0,84866.0,1.978654]
[1741518019118,0.20312747,84867.0,84866.0,1.978654]
[1741518019323,0.20312747,84867.0,84866.0,1.8608]
[1741518019826,0.20312747,84867.0,84866.0,2.130554]
[1741518020824,0.20312747,84867.0,84866.0,1.769754]
[1741518021036,0.20312747,84867.0,84866.0,2.130554]
[1741518021331,0.20312747,84867.0,84866.0,2.0127]
[1741518021634,0.20312747,84867.0,84866.0,1.9373]
[1741518021831,0.20312747,84867.0,84866.0,2.055154]
[1741518023027,0.20312747,84867.0,84866.0,1.978654]
[1741518024131,0.28062747,84867.0,84866.0,1.978654]
[1741518024531,0.28062747,84867.0,84866.0,1.8608]
[1741518025431,0.64142747,84867.0,84866.0,1.5]
[1741518025823,0.65327752,84867.0,84866.0,1.5]
[1741518028131,0.52357387,84867.0,84866.0,1.617854]
[1741518028430,0.08897387,84867.0,84866.0,1.775154]
[1741518029828,0.08897387,84867.0,84866.0,2.135954]
[1741518030227,0.20682647,84867.0,84866.0,2.135954]
[1741518031122,0.28372647,84867.0,84866.0,1.775154]
[1741518031327,0.28372647,84867.0,84866.0,2.135954]
[1741518031833,0.20682647,84867.0,84866.0,2.135954]
[1741518032630,0.00017668,84868.0,84866.0,2.285954]
[1741518032829,0.00017668,84868.0,84867.0,0.1178526]
[1741518033229,0.00017668,84868.0,84867.0,1.7774526]
[1741518034132,0.00017668,84868.0,84867.0,1.9274526]
[1741518034332,0.17321395,84871.0,84870.0,0.1178484]
[1741518034529,0.17321395,84871.0,84870.0,0.4786484]
[1741518035135,0.17321395,84871.0,84870.0,1.9786484]
[1741518035332,0.1041046,84872.0,84871.0,0.117847]
[1741518035536,0.1041046,84872.0,84871.0,0.708547]
[1741518035925,0.1041046,84872.0,84871.0,2.208547]
[1741518036623,0.13880614,84876.0,84871.0,2.2407]
[1741518036826,0.13880614,84876.0,84875.0,0.1178415]
[1741518037533,0.13880614,84876.0,84875.0,1.6178415]
[1741518038330,0.20785674,84886.0,84880.0,0.1178345]
[1741518038530,0.35444564,84911.0,84875.0,1.9257205]
[1741518038531,0.117805,84902.0,84889.0,0.0589108]
[1741518038735,0.0589007,84904.0,84895.0,0.4786137]
[1741518038935,0.0811,84905.0,84895.0,0.3608]
[1741518039232,0.0811,84905.0,84895.0,0.37234818]
[1741518039439,0.0811,84905.0,84895.0,1.87234818]
[1741518039736,0.00017668,84904.0,84895.0,1.87234818]
[1741518040331,0.00017668,84904.0,84895.0,2.0312786]
[1741518040637,0.13212851,84900.0,84898.0,0.3608]
[1741518040838,0.09086582,84900.0,84899.0,0.1582]
[1741518041038,0.04960313,84900.0,84899.0,0.1582]
[1741518041336,0.24274768,84915.0,84899.0,0.3082]
[1741518041537,0.24274768,84915.0,84914.0,1.8608]
[1741518041836,0.24274768,84915.0,84914.0,1.94556]
[1741518042037,0.20149715,84915.0,84914.0,2.45636]
[1741518042229,0.16024662,84915.0,84914.0,2.45636]
[1741518042434,0.31141608,84925.0,84914.0,2.61456]
[1741518042630,0.08472,84955.0,84914.0,2.61456]
[1741518042842,0.30442385,84930.0,84929.0,0.7216]
[1741518043040,0.30442385,84930.0,84929.0,1.01376]
[1741518043243,0.30442385,84930.0,84929.0,1.16376]
[1741518043834,0.26317332,84930.0,84929.0,1.38056]
[1741518044034,0.0768,84950.0,84929.0,1.38056]
[1741518044234,0.0751,84954.0,84946.0,0.3608]
[1741518044543,0.0751,84954.0,84947.0,0.23872]
[1741518044732,0.0763,84953.0,84947.0,0.23872]
[1741518045133,0.0751,84952.0,84947.0,0.23872]
[1741518045844,0.0751,84952.0,84951.0,1.5]
[1741518046638,0.0751,84952.0,84951.0,1.51173575]
[1741518047037,0.01148807,84973.0,84951.0,1.51173575]
[1741518047237,0.01148807,84973.0,84952.0,0.1596]
[1741518047238,0.0815,84965.0,84952.0,0.1596]
[1741518047543,0.0815,84965.0,84956.0,0.3608]
[1741518047844,0.0815,84965.0,84957.0,0.1596]
[1741518050743,0.0815,84965.0,84957.0,0.082]
[1741518050940,0.0815,84965.0,84956.0,0.3608]
[1741518051248,0.0815,84965.0,84958.0,1.5]
[1741518052137,0.00414674,84964.0,84958.0,1.5]
[1741518052641,0.079,84963.0,84958.0,1.5]
[1741518052946,0.0752,84962.0,84958.0,1.5]
[1741518053245,0.07934674,84962.0,84958.0,1.5]
[1741518053447,0.0779,84961.0,84958.0,1.5]
[1741518053645,0.00414674,84960.0,84958.0,1.5]
[1741518054050,0.0779,84959.0,84958.0,1.5]
[1741518054249,0.0779,84959.0,84958.0,1.54708]
[1741518055047,0.0779,84959.0,84958.0,1.63172]
[1741518058548,0.2191,84992.0,84958.0,1.99252]
[1741518058549,0.08464,84974.0,84958.0,1.99252]
[1741518058745,0.0783,84978.0,84972.0,0.3608]
[1741518059144,0.0783,84978.0,84977.0,1.5]
[1741518063356,0.08464,84982.0,84977.0,1.5]
[1741518063655,0.0781,84981.0,84977.0,1.5]
[1741518064355,0.0781,84981.0,84978.0,0.02138]
[1741518064545,0.0781,84981.0,84978.0,0.10098]
[1741518065047,0.0781,84981.0,84978.0,0.02138]
[1741518065247,0.0781,84981.0,84978.0,0.09998]
[1741518065555,0.0781,84981.0,84978.0,0.17798]
[1741518065751,0.0781,84981.0,84980.0,1.5]
[1741518066747,0.1627,84981.0,84978.0,0.02138]
[1741518066946,0.0816,84980.0,84978.0,0.02138]
[1741518067249,0.11421556,84981.0,84979.0,1.5]
[1741518068759,0.11421556,84981.0,84980.0,0.0746]
[1741518068947,0.02961556,84981.0,84980.0,0.0746]
[1741518069154,0.1631,84986.0,84980.0,0.4354]
[1741518069450,0.0846,84991.0,84985.0,1.5]
[1741518069658,0.0846,84991.0,84986.0,0.1556]
[1741518069955,0.3608,84995.0,84986.0,0.1556]
[1741518070149,0.0846,84995.0,84989.0,0.3608]
[1741518070352,0.0846,84995.0,84990.0,0.1556]
[1741518071653,0.0825,84999.0,84990.0,0.1556]
[1741518071856,0.2051,85000.0,84991.0,0.0765]
[1741518072066,0.0824,84999.0,84991.0,0.0765]
[1741518072360,0.1638,84999.0,84990.0,0.1556]
[1741518072559,0.0797,84998.0,84990.0,0.1556]
[1741518072755,0.0814,84999.0,84990.0,0.1556]
[1741518072956,0.0814,84997.0,84990.0,0.1556]
[1741518073347,0.0814,84997.0,84996.0,0.3608]
[1741518073551,0.1205,85000.0,84996.0,0.3608]
[1741518073753,0.1205,85000.0,84997.0,0.2367]
[1741518073957,0.2019,85000.0,84999.0,1.5]
[1741518075558,0.1205,85000.0,84999.0,1.5]
[1741518076156,0.12467246,85000.0,84999.0,1.5]
[1741518077959,0.1205,85000.0,84999.0,2.58426653]
[1741518078551,0.0753,85007.0,84999.0,2.58426653]
[1741518078753,0.0753,85007.0,85000.0,0.08456]
[1741518078955,0.0783,85016.0,85000.0,0.08456]
[1741518079154,0.0753,85015.0,85001.0,0.1603]
[1741518079362,0.0753,85015.0,85011.0,0.3608]
[1741518079574,0.0753,85015.0,85014.0,1.5]
[1741518080062,0.3608,85023.0,85014.0,1.58456]
[1741518080264,0.0817,85022.0,85014.0,1.58456]
[1741518080456,0.0817,85022.0,85015.0,0.02138]
[1741518080764,0.0799,85021.0,85015.0,0.02138]
[1741518081067,0.08456,85020.0,85016.0,0.07469]
[1741518081258,0.16626,85020.0,85016.0,0.15659]
[1741518081460,0.1615,85019.0,85016.0,0.15659]
[1741518081861,0.0817,85018.0,85017.0,0.04704]
[1741518082360,0.1616,85018.0,85017.0,0.04704]
[1741518082562,0.1616,85018.0,85017.0,0.12894]
[1741518083057,0.1616,85018.0,85017.0,0.04704]
[1741518085067,0.1616,85018.0,85017.0,0.12734]
[1741518085759,0.1616,85018.0,85017.0,0.05568]
[1741518087967,0.5224,85018.0,85017.0,0.05568]
[1741518088271,0.5224,85018.0,85017.0,0.13638]
[1741518088861,0.5224,85018.0,85017.0,0.05568]
[1741518089573,0.5224,85018.0,85017.0,0.13688]
[1741518089767,0.5224,85018.0,85017.0,0.21468]
[1741518090373,0.5224,85018.0,85017.0,1.71468]
[1741518090565,0.1616,85018.0,85017.0,1.71468]
[1741518091474,0.1616,85018.0,85017.0,1.63688]
[1741518091872,0.1616,85018.0,85017.0,1.55568]
[1741518094872,0.1616,85018.0,85017.0,1.63448]
[1741518095968,0.1616,85018.0,85017.0,1.55568]
[1741518096166,0.3116,85018.0,85017.0,1.55568]
[1741518096367,0.1616,85018.0,85017.0,1.55568]
[1741518098969,0.3116,85018.0,85017.0,1.55568]
[1741518099165,0.5307,85018.0,85017.0,0.05568]
[1741518100569,0.5864,85018.0,85001.0,0.23407176]
[1741518100776,0.7216,85002.0,84973.0,0.55781741]
[1741518101079,0.3608,84981.0,84980.0,0.40331419]
[1741518101275,0.87154,84981.0,84980.0,0.40331419]
[1741518102176,0.87154,84981.0,84974.0,0.1615]
[1741518102177,0.87154,84981.0,84978.0,0.0807]
[1741518102483,0.87154,84981.0,84978.0,0.2356]
[1741518102681,0.78706,84981.0,84978.0,0.2356]
[1741518102985,0.78706,84981.0,84978.0,0.0807]
[1741518102986,0.08448,84980.0,84978.0,0.0807]
[1741518103567,0.08448,84980.0,84979.0,0.0802]
[1741518103769,0.0960696,84980.0,84979.0,0.0802]
[1741518104167,0.1742696,84980.0,84979.0,0.0802]
[1741518104381,0.1742696,84980.0,84979.0,1.6609]
[1741518105180,0.08448,84980.0,84979.0,1.6609]
[1741518107481,0.16048,84980.0,84979.0,1.6609]
[1741518107880,0.16048,84980.0,84979.0,1.5807]
[1741518108185,0.37958,84980.0,84979.0,1.5]
[1741518108384,0.37958,84980.0,84949.0,0.00889746]
[1741518108571,0.3608,84955.0,84950.0,0.1515]
[1741518108773,0.08448,84954.0,84950.0,0.1515]
[1741518109274,0.08448,84954.0,84953.0,1.5]
[1741518109475,0.16218,84954.0,84953.0,1.5]
[1741518109674,0.08448,84954.0,84953.0,1.5]
[1741518111280,0.2382,84955.0,84953.0,1.5]
[1741518111484,0.08448,84954.0,84953.0,1.5]
[1741518111782,0.3608,84975.0,84953.0,1.5768]
[1741518112084,0.08452,84968.0,84963.0,0.3608]
[1741518112275,0.08452,84967.0,84953.0,1.5006]
[1741518112475,0.3608,84975.0,84953.0,1.5]
[1741518112676,0.08452,84971.0,84953.0,1.5]
[1741518113085,0.00017596,84970.0,84953.0,1.5]
[1741518113877,0.3608,84964.0,84953.0,1.5]
[1741518114078,0.08452,84963.0,84953.0,1.5]
[1741518114273,0.08452,84963.0,84952.0,0.44556]
[1741518114785,0.08452,84963.0,84962.0,1.5]
[1741518114986,0.08448,84963.0,84962.0,1.5]
[1741518118487,0.08448,84963.0,84962.0,1.8608]
[1741518119087,0.00017596,84970.0,84962.0,1.8608]
[1741518119291,0.00017596,84970.0,84963.0,0.08]
[1741518119593,0.00017596,84970.0,84963.0,0.1603]
[1741518120288,0.3608,84964.0,84963.0,0.0803]
[1741518120591,0.44528,84964.0,84953.0,0.00557]
[1741518120892,0.44528,84964.0,84924.0,0.3608]
[1741518120893,0.3608,84954.0,84913.0,1.5]
[1741518121091,0.3608,84934.0,84914.0,0.0765]
[1741518121392,0.23628,84933.0,84914.0,0.0765]
[1741518121687,0.23628,84933.0,84914.0,0.33279646]
[1741518121881,0.08448,84933.0,84914.0,0.0765]
[1741518122086,0.00017657,84932.0,84915.0,0.00017657]
[1741518123500,0.15407657,84932.0,84915.0,0.33037303]
[1741518124095,0.15407657,84932.0,84916.0,0.00049]
[1741518124701,0.07697657,84932.0,84916.0,0.00049]
[1741518125003,0.07697657,84932.0,84916.0,0.36129]
[1741518125201,0.00017657,84932.0,84927.0,0.3608]
[1741518125503,0.00017657,84932.0,84928.0,0.16328]
[1741518125694,0.00017657,84932.0,84928.0,0.23718]
[1741518125894,0.00017657,84932.0,84929.0,0.0747]
[1741518126290,0.00017657,84932.0,84931.0,1.5]
[1741518126698,0.00017657,84932.0,84931.0,1.6544]
[1741518127104,0.08448,84948.0,84931.0,1.6544]
[1741518127412,0.08448,84948.0,84938.0,0.3608]
[1741518127705,0.3608,84942.0,84931.0,1.655]
[1741518127903,0.23738,84941.0,84931.0,1.6544]
[1741518128907,0.3608,84932.0,84931.0,1.6544]
[1741518129107,0.44528,84932.0,84931.0,1.6544]
[1741518129805,0.44528,84932.0,84931.0,1.5]
[1741518131312,0.44528,84932.0,84931.0,1.6542]
[1741518132318,0.44528,84932.0,84931.0,1.5]
[1741518132522,0.66438,84932.0,84931.0,1.5]
[1741518133110,0.66438,84932.0,84908.0,0.0758]
[1741518133413,0.3608,84918.0,84909.0,0.0781]
[1741518133619,0.24718,84917.0,84909.0,0.0781]
[1741518134115,0.24718,84917.0,84916.0,1.50049]
[1741518136214,0.24718,84917.0,84916.0,1.5]
[1741518137120,0.08448,84917.0,84916.0,1.5]
[1741518137510,0.08448,84917.0,84916.0,1.6575]
[1741518139318,0.08448,84924.0,84916.0,1.6575]
[1741518139519,0.00017657,84925.0,84923.0,0.3608]
[1741518139720,0.00017657,84925.0,84924.0,0.156]
[1741518140019,0.00017657,84925.0,84924.0,1.656]
[1741518140217,0.00017657,84925.0,84924.0,1.91229646]
[1741518140526,0.08465657,84925.0,84924.0,1.656]
[1741518141624,0.08465657,84925.0,84924.0,1.91229646]
[1741518142625,0.08465657,84925.0,84924.0,1.656]
[1741518142824,0.08465657,84925.0,84924.0,1.5]
[1741518143127,0.08465657,84925.0,84923.0,0.3608]
[1741518143328,0.153,84924.0,84923.0,0.3608]
[1741518143925,0.153,84924.0,84923.0,1.8608]
[1741518149220,0.00017657,84925.0,84923.0,1.8608]
[1741518149425,0.00017657,84925.0,84924.0,0.0717]
[1741518149923,0.00017657,84925.0,84924.0,1.5717]
[1741518155031,0.00017657,84925.0,84924.0,1.7199]
[1741518156029,0.3608,84957.0,84924.0,1.80438]
[1741518156233,0.0713,84956.0,84941.0,0.3608]
[1741518156436,0.08448,84955.0,84942.0,0.2243]
[1741518156733,0.08448,84954.0,84945.0,1.5]
[1741518156934,0.08448,84954.0,84946.0,0.1492]
[1741518157533,0.00017596,84958.0,84953.0,0.3608]
[1741518157729,0.08448,84957.0,84954.0,0.1492]
[1741518159633,0.00017596,84958.0,84954.0,0.1492]
[1741518161440,0.36097596,84958.0,84954.0,0.1492]
[1741518162035,0.1517,84957.0,84954.0,0.1492]
[1741518162237,0.1517,84957.0,84955.0,1.5]
[1741518162435,0.08444,84956.0,84954.0,0.1492]
[1741518162936,0.151,84955.0,84954.0,0.1492]
[1741518163242,0.08444,84956.0,84954.0,0.1492]
[1741518166241,0.08444,84956.0,84955.0,0.0723]
[1741518166735,0.08444,84956.0,84955.0,0.2243]
[1741518166940,0.08444,84956.0,84955.0,1.7243]
[1741518169037,0.23054,84956.0,84955.0,1.7243]
[1741518172333,0.23054,84956.0,84955.0,1.652]
[1741518174745,0.08444,84956.0,84955.0,1.652]
[1741518175140,0.00017596,84958.0,84955.0,1.652]
[1741518175338,0.00017596,84958.0,84955.0,0.152]
[1741518175639,0.00017596,84958.0,84955.0,0.2364]
[1741518175844,0.00017596,84958.0,84957.0,1.5]
[1741518176245,0.3608,85000.0,84957.0,1.65]
[1741518176436,0.0844,84983.0,84977.0,0.3608]
[1741518176637,0.1587,84983.0,84978.0,0.2241]
[1741518177044,0.0844,84983.0,84978.0,0.2241]
[1741518177232,0.0844,84983.0,84978.0,1.7241]
[1741518178048,0.0844,84990.0,84978.0,1.7241]
[1741518178241,0.0844,84992.0,84989.0,0.3608]
[1741518178543,0.0844,84992.0,84990.0,0.158]
[1741518178749,0.1501,84991.0,84990.0,0.158]
[1741518181043,0.08436,84996.0,84990.0,0.158]
[1741518181542,0.152,84999.0,84990.0,0.158]
[1741518181744,0.08436,84998.0,84990.0,0.158]
[1741518181944,0.08436,84998.0,84996.0,0.3608]
[1741518182149,0.2082126,85007.0,84997.0,0.1571]
[1741518182442,0.2082126,85007.0,84997.0,0.2343]
[1741518182845,0.2082126,85007.0,84997.0,0.24591642]
[1741518183447,0.2082126,85007.0,85002.0,1.5]
[1741518183752,0.2082126,85007.0,85005.0,0.3608]
[1741518183949,0.1512,85006.0,85005.0,0.3608]
[1741518184748,0.1512,85006.0,85002.0,0.00064]
[1741518184749,0.23556,85006.0,85002.0,0.00064]
[1741518184947,0.23556,85006.0,84996.0,0.3608]
[1741518184948,0.0755,85005.0,84996.0,0.3608]
[1741518185144,0.3608,85003.0,84996.0,0.3608]
[1741518185339,0.0763,85002.0,84996.0,0.3608]
[1741518185555,0.08436,85001.0,84996.0,0.3608]
[1741518186053,0.1512,85000.0,84996.0,0.3608]
[1741518186653,0.08436,85001.0,84996.0,0.3608]
[1741518186853,0.08436,85006.0,84996.0,0.3608]
[1741518187450,0.08436,85006.0,85005.0,0.3608]
[1741518188055,0.08436,85010.0,85005.0,0.3608]
[1741518188258,0.08436,85011.0,85006.0,0.078]
[1741518188553,0.08436,85013.0,85006.0,0.4388]
[1741518188755,0.08436,85015.0,85006.0,0.4388]
[1741518188954,0.1546,85014.0,85006.0,0.4388]
[1741518189143,0.1546,85014.0,85006.0,0.3608]
[1741518189948,0.1546,85014.0,85007.0,0.00195]
[1741518191152,0.1546,85014.0,85008.0,1.5]
[1741518191555,0.08432,85013.0,85008.0,1.5]
[1741518192047,0.1604,85012.0,85008.0,1.5]
[1741518192253,0.1604,85012.0,85010.0,0.3608]
[1741518192553,0.1604,85012.0,85008.0,1.50064]
[1741518192753,0.1604,85012.0,85008.0,1.5]
[1741518193153,0.1604,85012.0,85011.0,0.3608]
[1741518193952,0.08432,85015.0,85011.0,0.3608]
[1741518194357,0.08432,85017.0,85011.0,0.3608]
[1741518194545,0.08432,85017.0,85012.0,0.0813]
[1741518195865,0.08432,85018.0,85012.0,0.0813]
[1741518196652,0.08432,85018.0,85017.0,1.5]
[1741518197855,0.08432,85018.0,85017.0,1.5784]
[1741518198056,0.1569,85018.0,85017.0,1.5784]
[1741518198356,0.24122,85018.0,85017.0,1.5784]
[1741518199163,0.24122,85018.0,85017.0,1.5]
[1741518199760,0.24122,85018.0,85017.0,1.5798]
[1741518200153,0.24122,85018.0,85017.0,1.5]
[1741518201461,0.24122,85018.0,85017.0,1.5798]
[1741518201655,0.24122,85018.0,85017.0,1.5]
[1741518203368,0.24122,85018.0,85017.0,1.5752]
[1741518203661,0.1569,85018.0,85017.0,1.5752]
[1741518203863,0.08428,85018.0,85017.0,1.6528]
[1741518204070,0.08428,85018.0,85017.0,2.0136]
[1741518204365,0.08828,85018.0,85017.0,2.0962]
[1741518204567,0.004,85018.0,85017.0,2.0962]
[1741518206168,0.004,85018.0,85017.0,2.10760176]
[1741518206867,0.003,85018.0,85017.0,2.10660176]
[1741518208369,0.08428,85031.0,85017.0,2.10660176]
[1741518208572,0.08428,85031.0,85030.0,0.3608]
[1741518208971,0.08428,85031.0,85030.0,1.8608]
[1741518209571,0.003,85031.0,85030.0,1.8608]
[1741518210070,0.004,85031.0,85030.0,1.8618]
[1741518210370,0.004,85031.0,85030.0,2.0168]
[1741518212669,0.3608,85053.0,85030.0,2.0168]
[1741518212670,0.01172233,85043.0,85030.0,2.0168]
[1741518212869,0.01172233,85043.0,85042.0,0.3608]
[1741518213471,0.01172233,85043.0,85042.0,1.8608]
[1741518213677,0.15998,85052.0,85042.0,1.8608]
[1741518213876,0.08424,85051.0,85043.0,0.2366]
[1741518214276,0.0813,85050.0,85043.0,0.2366]
[1741518214863,0.09271305,85050.0,85042.0,1.8624]
[1741518215078,0.09271305,85050.0,85043.0,0.0765]
[1741518215378,0.0813,85050.0,85043.0,0.157]
[1741518215578,0.0813,85050.0,85044.0,0.0803]
[1741518215777,0.3608,85053.0,85044.0,0.0803]
[1741518216077,0.08424,85052.0,85044.0,0.0803]
[1741518216272,0.16554,85052.0,85044.0,0.0803]
[1741518216973,0.0813,85052.0,85044.0,0.0803]
[1741518217280,0.44504,85053.0,85044.0,0.0813]
[1741518217476,0.44504,85053.0,85044.0,0.09316794]
[1741518217779,0.3608,85053.0,85045.0,0.01177]
[1741518218075,0.08424,85056.0,85052.0,0.3608]
[1741518218277,0.08424,85060.0,85053.0,0.1586]
[1741518218779,0.0831,85059.0,85053.0,0.1586]
[1741518218969,0.083,85068.0,85053.0,0.1586]
[1741518219170,0.16734,85067.0,85053.0,0.1586]
[1741518219373,0.0831,85067.0,85065.0,0.3608]
[1741518219580,0.08424,85069.0,85066.0,0.1586]
[1741518219777,0.08424,85074.0,85066.0,0.5194]
[1741518220081,0.08424,85074.0,85066.0,0.1586]
[1741518220276,0.0791,85071.0,85066.0,0.1586]
[1741518220483,0.0791,85071.0,85066.0,0.0801]
[1741518220667,0.0791,85071.0,85058.0,0.3608]
[1741518220867,0.3608,85066.0,85057.0,0.00077634]
[1741518221079,0.16334,85065.0,85057.0,0.00017634]
[1741518221279,0.16334,85065.0,85058.0,1.5]
[1741518221782,0.3608,85062.0,85059.0,0.03658]
[1741518221975,0.2982,85061.0,85059.0,0.03658]
[1741518222380,0.4482,85061.0,85059.0,0.03658]
[1741518222682,0.2982,85061.0,85059.0,0.03658]
[1741518223482,0.2982,85061.0,85060.0,1.5]
[1741518223679,0.3824,85061.0,85060.0,1.5]
[1741518223982,0.3824,85061.0,85060.0,1.6554]
[1741518224173,0.3824,85061.0,85059.0,0.03658]
[1741518224682,0.0775,85060.0,85059.0,0.03658]
[1741518225080,0.1584,85060.0,85059.0,0.03658]
[1741518226379,0.1584,85060.0,85059.0,0.19818]
[1741518226579,0.1584,85060.0,85059.0,1.61528]
[1741518227284,0.2426,85060.0,85059.0,1.61528]
[1741518227476,0.1617,85060.0,85059.0,1.61528]
[1741518227671,0.0842,85060.0,85059.0,1.61528]
[1741518228079,0.3608,85069.0,85059.0,1.61528]
[1741518228280,0.1604,85068.0,85059.0,1.97608]
[1741518228686,0.0762,85068.0,85059.0,1.97608]
[1741518228890,0.0842,85067.0,85059.0,1.97608]
[1741518229383,0.0842,85067.0,85060.0,0.02329]
[1741518229686,0.0842,85066.0,85060.0,0.02329]
[1741518229885,0.0842,85069.0,85060.0,0.02329]
[1741518230586,0.0842,85074.0,85068.0,0.3608]
[1741518230776,0.0842,85074.0,85069.0,0.2355]
[1741518231486,0.0842,85074.0,85066.0,0.3608]
[1741518231785,0.1589,85073.0,85061.0,0.1591]
[1741518232088,0.1589,85073.0,85065.0,0.3608]
[1741518232289,0.1589,85073.0,85066.0,0.1515]
[1741518232489,0.1589,85073.0,85067.0,1.5]
[1741518234081,0.1589,85073.0,85068.0,0.00072]
[1741518234580,0.1589,85073.0,85068.0,0.15222]
[1741518234981,0.1589,85073.0,85068.0,0.07602]
[1741518235286,0.1589,85073.0,85068.0,0.00072]
[1741518236291,0.1589,85073.0,85068.0,0.07842]
[1741518236884,0.1589,85073.0,85069.0,0.0787]
[1741518237093,0.1589,85073.0,85070.0,0.01228]
[1741518237288,0.1589,85073.0,85070.0,0.08998]
[1741518237491,0.1589,85073.0,85071.0,0.0787]
[1741518237990,0.1589,85073.0,85072.0,1.5777]
[1741518239888,0.33269907,85073.0,85072.0,1.5777]
[1741518240092,0.25029907,85073.0,85072.0,1.5777]
[1741518240692,0.32799907,85073.0,85072.0,1.5777]
[1741518242086,0.40939907,85073.0,85072.0,1.5]
[1741518242287,0.40939907,85073.0,85071.0,0.0104]
[1741518242689,0.40939907,85073.0,85072.0,1.5]
[1741518243182,0.2356,85073.0,85072.0,1.5]
[1741518243490,0.2356,85073.0,85071.0,0.03798]
[1741518246491,0.3856,85073.0,85071.0,0.03798]
[1741518246693,0.3856,85073.0,85068.0,0.00072]
[1741518246892,0.3608,85069.0,85059.0,0.03658]
[1741518247092,0.3608,85060.0,85059.0,0.03658]
[1741518247288,0.44496,85060.0,85059.0,0.03658]
[1741518247493,0.1549,85068.0,85059.0,0.03658]
[1741518247691,0.1549,85068.0,85060.0,1.574]
[1741518247996,0.08416,85067.0,85060.0,1.6519]
[1741518248998,0.1577,85066.0,85060.0,1.574]
[1741518249297,0.08416,85067.0,85060.0,1.574]
[1741518249490,0.08416,85067.0,85061.0,0.0779]
[1741518249884,0.08416,85067.0,85062.0,0.0762]
[1741518250088,0.1577,85066.0,85062.0,0.0762]
[1741518250291,0.1577,85066.0,85063.0,0.074]
[1741518250489,0.1577,85066.0,85064.0,0.3608]
[1741518250697,0.1577,85066.0,85064.0,0.4374]
[1741518250897,0.2578931,85066.0,85065.0,0.0787]
[1741518251395,0.2578931,85066.0,85065.0,0.1553]
[1741518252088,0.1001931,85066.0,85065.0,0.1553]
[1741518252490,0.2498931,85066.0,85065.0,0.1553]
[1741518253692,0.1757931,85066.0,85065.0,0.1553]
[1741518254390,0.0756,85066.0,85065.0,0.1553]
[1741518255200,0.08412,85066.0,85065.0,0.1553]
[1741518255999,0.28363774,85071.0,85065.0,1.6553]
[1741518256196,0.08412,85070.0,85065.0,1.6553]
[1741518256595,0.16452,85070.0,85065.0,1.6553]
[1741518256894,0.08412,85069.0,85065.0,1.6553]
[1741518260406,0.08412,85072.0,85065.0,1.6553]
[1741518260701,0.08412,85072.0,85065.0,1.6573]
[1741518260894,0.08412,85072.0,85065.0,0.1573]
[1741518261293,0.08412,85072.0,85071.0,1.5]
[1741518261502,0.08412,85073.0,85071.0,1.5]
[1741518261702,0.08412,85073.0,85072.0,0.1582]
[1741518262403,0.25883128,85073.0,85072.0,0.1582]
[1741518263194,0.42093128,85073.0,85072.0,0.1582]
[1741518263391,0.25883128,85073.0,85072.0,0.1582]
[1741518264898,0.20933774,85078.0,85072.0,0.1582]
[1741518264899,0.20933774,85078.0,85072.0,0.39232]
[1741518265195,0.20933774,85078.0,85072.0,0.24232]
[1741518265499,0.20933774,85078.0,85076.0,1.5]
[1741518266198,0.44492,85077.0,85076.0,1.5]
[1741518266399,0.52182,85077.0,85072.0,0.1582]
[1741518266601,0.0759,85076.0,85072.0,0.1582]
[1741518266898,0.0759,85076.0,85073.0,1.5]
[1741518267099,0.08412,85075.0,85073.0,1.5]
[1741518267301,0.08412,85075.0,85074.0,0.0784]
[1741518267701,0.3608,85077.0,85074.0,0.0784]
[1741518267893,0.44492,85077.0,85075.0,1.5]
[1741518268094,0.44492,85077.0,85075.0,1.5744]
[1741518268394,0.44492,85077.0,85076.0,0.0784]
[1741518268796,0.08412,85077.0,85076.0,0.1524]
[1741518269000,0.08412,85077.0,85076.0,1.6524]
[1741518269694,0.08412,85077.0,85076.0,1.64777583]
[1741518270396,0.15702,85077.0,85076.0,1.64777583]
[1741518270597,0.3608,85078.0,85076.0,1.64777583]
[1741518270796,0.44488,85078.0,85076.0,1.64777583]
[1741518271000,0.44488,85078.0,85077.0,0.0779]
[1741518271391,0.44488,85078.0,85077.0,0.1519]
[1741518271605,0.44488,85078.0,85077.0,1.6519]
[1741518273797,0.4479676,85078.0,85077.0,1.6519]
[1741518274295,0.4479676,85078.0,85077.0,1.574]
[1741518274696,0.44806173,85078.0,85077.0,1.574]
[1741518276001,0.44806173,85078.0,85077.0,1.5]
[1741518276395,0.44806173,85078.0,85077.0,1.5786]
[1741518276994,0.44806173,85078.0,85077.0,1.6535]
[1741518278702,0.44806173,85078.0,85077.0,1.5]
[1741518279002,0.66716173,85078.0,85073.0,0.03658]
[1741518279207,0.3608,85076.0,85073.0,0.03658]
[1741518279516,0.1598,85075.0,85074.0,1.5]
[1741518281599,0.24388,85075.0,85074.0,1.6525]